Cogmind - Beta 15 @@@ ROGUE MODE // 2025.05.24 @ 17:45:53 Player: KaiserChief Result: Destroyed by Y-64 Sentinel with Wave Gun Performance ------------- Evolutions (1) 500 Regions Visited (5) 1000 Robots Destroyed (18) 90 Value Destroyed (549) 549 Prototype IDs (5) 100 Alien Tech Used (0) 0 Bonus (45) 45 TOTAL SCORE: 2284 Bonus ------- Follower Combat Kills 45 Cogmind --------- Core Integrity 0/400 Matter 275/300 Energy 7/100 System Corruption 0% Temperature Cool (25) Movement Core (300) Ox5 Location -6/Proximity Caves Parts ------- > --- POWER (1) -------- (None) > --- PROPULSION (3) --- (None) > --- UTILITY (3) ------ Medium Storage Unit > --- WEAPON (2) ------- Arc Thrower > --- INVENTORY (10) --- Improved Heat Sink Structural Scanner Medium Armor Plating System Shield Phasing AFG Self-destruct Interrupter (22) Peak State ------------ > --- POWER ------------ Light Angular Momentum Engine > --- PROPULSION ------- Aluminum Leg Aluminum Leg Aluminum Leg > --- UTILITY ---------- Medium Storage Unit Sensor Array Hacking Drone Bay > --- WEAPON ----------- Bore Cannon RU-N14's Throwing Claymores > --- INVENTORY -------- Light Ion Engine Improved Heat Sink Structural Scanner Medium Armor Plating System Shield Phasing AFG Plasma Rifle Gauss Rifle [Rating: 34] Favorites ----------- Power Light Ion Engine Engine Light Ion Engine Propulsion Aluminum Leg Leg Aluminum Leg Utility Medium Storage Unit Device Sensor Array Storage Medium Storage Unit Protection Weapon Shielding Weapon Autogun Energy Gun EM Pulse Gun Ballistic Gun Autogun Ballistic Cannon Bore Cannon Special Weapon RU-N14's Throwing Claymores Build | -11 -10 -9 -9 -7 -6 ------- Run | Yrd Mat Mat Min Zio Pro Slots Evolved 2 | . . 2 . . . Power . | . . . . . . Propulsion 1 | . . 1 . . . Utility 1 | . . 1 . . . Weapon . | . . . . . . Parts Attached 27 | 6 4 4 . 4 9 Power 4 | 1 1 . . . 2 Engine 4 | 1 1 . . . 2 Core . | . . . . . . Reactor . | . . . . . . Propulsion 4 | 2 . 1 . . 1 Treads . | . . . . . . Leg 4 | 2 . 1 . . 1 Wheel . | . . . . . . Hover . | . . . . . . Flight . | . . . . . . Utility 6 | 1 2 1 . 2 . Device 3 | . . 1 . 2 . Storage 2 | 1 1 . . . . Processor . | . . . . . . Hackware . | . . . . . . Protection 1 | . 1 . . . . Artifact . | . . . . . . Weapon 13 | 2 1 2 . 2 6 Energy Gun 4 | 1 . . . . 3 Energy Cannon . | . . . . . . Ballistic Gun 4 | 1 1 1 . 1 . Ballistic Cannon 1 | . . . . . 1 Launcher . | . . . . . . Special Weapon 4 | . . 1 . 1 2 Impact Weapon . | . . . . . . Slashing Weapon . | . . . . . . Piercing Weapon . | . . . . . . Special Melee Weapon . | . . . . . . Unidentified Prototypes 3 | . . . . 2 1 Parts Lost 17 | . 2 . . . 15 Power 4 | . 1 . . . 3 Propulsion 4 | . . . . . 4 Utility 2 | . . . . . 2 Weapon 7 | . 1 . . . 6 Highest Loss Streak 7 | . 2 . . . 7 To Critical Strikes . | . . . . . . Average Backups 8 | 2 4 4 6 9 8 Power . | . . . . 1 . Propulsion . | . . . . . . Utility 4 | . 2 3 4 4 4 Weapon 2 | 1 . 1 2 3 2 Tool/Special . | . . . . . . Unused Backups 8 | . . . . 1 7 Power 1 | . . . . . 1 Propulsion . | . . . . . . Utility 7 | . . . . 1 6 Weapon . | . . . . . . Tool/Special . | . . . . . . Average Slot Usage (%) 98 | . 98 99 100 100 96 Engine 11 | . 14 11 11 11 10 Leg 32 | . 28 33 33 33 31 Device 16 | . . 10 11 15 21 Storage 11 | . 14 11 11 11 11 Protection 4 | . 12 11 11 6 . Ballistic Gun 9 | . 20 15 11 17 1 Ballistic Cannon 3 | . . . . . 7 Special Weapon 8 | . . 6 11 4 12 Peak Build Rating 34 | 6 7 10 10 30 34 Average Rating 22 | 3 6 9 10 19 30 On Entrance 9 | . 6 7 10 10 26 Naked Turns . | . . . . . . Heaviest Build 41 | 12 17 19 19 41 38 Greatest Support 30 | 20 20 30 30 30 30 Greatest Overweight (x) 5 | . . . . 1 5 Average Overweight (x) . | . . . . . . Largest Inventory Capacity 10 | 8 10 10 10 10 10 Average Capacity 9 | 6 8 10 10 10 10 Most Carried 10 | 5 6 6 7 10 10 Average Carried 8 | 2 4 4 6 9 9 Final Capacity 10 | 8 10 10 10 10 10 Final Carried 10 | 2 5 6 7 10 6 Class Distribution -------------------- 100% | Mutant Dominant Class ---------------- Mutant | -10/Materials Mutant | -9/Materials Mutant | -9/Mines Mutant | -7/Zion Mutant | -6/Proximity Caves Resources | -11 -10 -9 -9 -7 -6 ----------- Run | Yrd Mat Mat Min Zio Pro Matter Collected 614 | 234 111 . 127 35 107 Remotely . | . . . . . . Salvage Created 571 | . 227 . 47 . 297 Parts 25 | . 11 . 4 . 10 Haulers Intercepted . | . . . . . . Recyclers Shooed . | . . . . . . Parts Field Recycled . | . . . . . . Retrieved Matter . | . . . . . . Parts Self-Destructed 14 | . . . . 1 13 Prevented . | . . . . . . Kills | -11 -10 -9 -9 -7 -6 ------- Run | Yrd Mat Mat Min Zio Pro Combat Hostiles Destroyed 16 | . 4 . 4 . 8 Guns 9 | . 4 . 3 . 2 Cannons 4 | . . . 1 . 3 AOE 3 | . . . . . 3 Classes Destroyed 5 | . 3 . 1 . 1 Worker 1 | . 1 . . . . Builder 1 | . 1 . . . . Swarmer 6 | . . . 4 . 2 Grunt 9 | . 4 . . . 5 Duelist 1 | . . . . . 1 Best Kill Streak 6 | . 6 . 4 . 4 Combat Bots Only 4 | . 4 . 4 . 4 Max Kills in Single Turn 2 | . 2 . 1 . 2 Gunslinging . | . . . . . . Exploded 1 | . . . . . 1 Melee . | . . . . . . Uniques/NPCs Destroyed . | . . . . . . Combat | -11 -10 -9 -9 -7 -6 -------- Run | Yrd Mat Mat Min Zio Pro Hostile Shots Fired 164 | . 34 . 24 . 106 Missed 50 | . 6 . 12 . 32 Hits 114 | . 28 . 12 . 74 Melee 3 | . . . . . 3 Projectile 111 | . 28 . 12 . 71 Critical Strikes 4 | . 2 . . . 2 Damage Taken 1945 | . 376 . 87 . 1482 Core 491 | . 82 . 13 . 396 Absorbed by Shields . | . . . . . . Redirected to Shielding 44 | . 36 . 8 . . Core Remaining (%) 83 | 100 67 . . . . Volleys Fired 83 | . 21 17 22 . 23 Largest 2 | . 2 1 2 . 2 Hottest 123 | . 60 100 123 . 80 Shots Fired 111 | . 42 17 23 . 29 Gun 77 | . 42 . 22 . 13 Cannon 7 | . . . . . 7 Launcher . | . . . . . . Special 27 | . . 17 1 . 9 Kinetic 62 | . 31 . 22 . 9 Thermal 28 | . . 17 1 . 10 Explosive 4 | . . . . . 4 Electromagnetic 14 | . 11 . . . 3 Robot Hit Streak 7 | . 6 . 2 . 7 Robot Miss Streak 5 | . 5 . 3 . 4 Penetration Max 1 | . . . . . 1 Secondary Targets 1 | . 1 . . . . Max Gunslinging Chain 1 | . 1 . . . . Shots Hit Robots 47 | . 22 . 10 . 15 Core Hits 27 | . 12 . 3 . 12 Critical Kills 2 | . . . . . 2 Critical Parts Destroyed 1 | . . . . . 1 Critical Strikes 5 | . . . . . 5 Burn 2 | . . . . . 2 Destroy 3 | . . . . . 3 Melee Attacks . | . . . . . . Impact . | . . . . . . Slashing . | . . . . . . Piercing . | . . . . . . Sneak Attacks . | . . . . . . Combat Hostiles . | . . . . . . Follow-up Attacks . | . . . . . . Damage Inflicted 1423 | . 315 . 165 . 943 Guns 597 | . 304 . 141 . 152 Cannons 138 | . . . . . 138 Explosions 605 | . . . . . 605 Melee . | . . . . . . Ramming 11 | . 11 . . . . Kinetic 507 | . 228 . 141 . 138 Thermal 154 | . . . 24 . 130 Explosive 605 | . . . . . 605 Electromagnetic 119 | . 76 . . . 43 Impact . | . . . . . . Slashing 27 | . . . . . 27 Piercing . | . . . . . . Highest Corruption . | . . . . . . Average Corruption . | . . . . . . Corruption Purged . | . . . . . . Corruption Blocked . | . . . . . . Overload Shots . | . . . . . . Overflow Damage 49 | . . . 19 . 30 Projectiles 20 | . . . 19 . 1 Explosions 29 | . . . . . 29 Melee . | . . . . . . Knockbacks 1 | . . . . . 1 Impact . | . . . . . . Kinetic 1 | . . . . . 1 Secondary . | . . . . . . Self-Inflicted Damage . | . . . . . . Shots . | . . . . . . Rammed . | . . . . . . Targets Rammed 1 | . 1 . . . . Kicked 1 | . 1 . . . . Crushed . | . . . . . . Highest Temperature 125 | . 109 8 28 . 125 Average Temperature 29 | . 54 5 13 . 36 Received Heat Transfer 585 | . 243 . . . 342 Siege Activations . | . . . . . . Martial Activations . | . . . . . . Shielding Activations . | . . . . . . Robots Disrupted . | . . . . . . Combat Hostiles . | . . . . . . Robots Corrupted . | . . . . . . Combat Hostiles . | . . . . . . Parts Fried . | . . . . . . Impact Corruptions . | . . . . . . Robots Melted . | . . . . . . Combat Hostiles . | . . . . . . Parts Melted 2 | . . . . . 2 Heat Transferred 660 | . . . 50 . 610 Parts Sabotaged . | . . . . . . Parts Stolen . | . . . . . . Parts Stripped . | . . . . . . Power Chain Reactions . | . . . . . . Alert | -11 -10 -9 -9 -7 -6 ------- Run | Yrd Mat Mat Min Zio Pro Maximum Alert Level . | . . . . . . Low Security (%) 100 | 100 100 100 100 . . Level 1 . | . . . . . . Level 2 . | . . . . . . Level 3 . | . . . . . . Level 4 . | . . . . . . Level 5 . | . . . . . . High Security . | . . . . . . Max Security . | . . . . . . Peak Influence 110 | . 75 14 110 . . Initial 14 | . . 14 . . . Average 25 | . 25 1 51 . . Influence Increases 454 | . 110 4 120 . 220 Destroy 0b10 Robot/C 340 | . 80 . 80 . 180 Destroy 0b10 Robot/NC 10 | . 10 . . . . Destroy Leader 50 | . 20 . 10 . 20 Allied During Kill 5 | . . . . . 5 Successful Hack 2 | . . 2 . . . Destroy Structure 2 | . . 2 . . . Lose Combat Pursuer 45 | . . . 30 . 15 Influence Decreases 453 | . 75 39 80 40 219 Entered New Map 61 | . . 21 . 40 . Time Decay 280 | . 55 18 80 . 127 Lost Part 112 | . 20 . . . 92 Squads Dispatched 1 | . 1 . . . . Investigation . | . . . . . . Extermination . | . . . . . . Reinforcement 1 | . 1 . . . . Assault . | . . . . . . Garrison . | . . . . . . Intercept . | . . . . . . Searches Triggered . | . . . . . . Construction Impeded . | . . . . . . Haulers Reinforced . | . . . . . . Active Scanning Responses . | . . . . . . Cargo Convoy Interrupts . | . . . . . . Stealth | -11 -10 -9 -9 -7 -6 --------- Run | Yrd Mat Mat Min Zio Pro Distress Signals . | . . . . . . Communications Jammed . | . . . . . . Distress Signals . | . . . . . . Times Spotted 25 | . 7 . 6 . 12 Peak Tracking Total 7 | . 3 . 4 . 7 Tactical Retreats 2 | . . . 1 . 1 Traps | -11 -10 -9 -9 -7 -6 ------- Run | Yrd Mat Mat Min Zio Pro Traps Triggered . | . . . . . . Indirectly . | . . . . . . Trap Hack Attempts . | . . . . . . Triggered . | . . . . . . Disarmed . | . . . . . . Reprogrammed . | . . . . . . Reused . | . . . . . . Traps Extracted . | . . . . . . Installed . | . . . . . . Triggered . | . . . . . . Machines | -11 -10 -9 -9 -7 -6 ---------- Run | Yrd Mat Mat Min Zio Pro Machines Disabled 1 | . . . . . 1 Max in Single Turn 1 | . . . . . 1 Machines Repaired . | . . . . . . Machines Dismantled . | . . . . . . Machines Sabotaged . | . . . . . . Overloaded Fab Kills . | . . . . . . Hacking | -11 -10 -9 -9 -7 -6 --------- Run | Yrd Mat Mat Min Zio Pro Machines Accessed 2 | . . 2 . . . Terminals 2 | . . 2 . . . Fabricators . | . . . . . . Repair Stations . | . . . . . . Recycling Units . | . . . . . . Scanalyzers . | . . . . . . Garrison Access . | . . . . . . Total Hacks 2 | . . 2 . . . Successful 2 | . . 2 . . . Failed . | . . . . . . Catastrophic . | . . . . . . Database Lockouts . | . . . . . . Manual . | . . . . . . Terminals 2 | . . 2 . . . Fabricators . | . . . . . . Repair Stations . | . . . . . . Recycling Units . | . . . . . . Scanalyzers . | . . . . . . Garrison Access . | . . . . . . Terminal Hacks 2 | . . 2 . . . Record 1 | . . 1 . . . Prototype ID Bank 1 | . . 1 . . . Fabricator Hacks . | . . . . . . Repair Station Hacks . | . . . . . . Recycling Unit Hacks . | . . . . . . Scanalyzer . | . . . . . . Garrison Access Hacks . | . . . . . . Unauthorized Hacks . | . . . . . . Terminals . | . . . . . . Fabricators . | . . . . . . Repair Stations . | . . . . . . Recycling Units . | . . . . . . Scanalyzers . | . . . . . . Garrison Access . | . . . . . . Data Cores Recovered . | . . . . . . Used . | . . . . . . Hacking Detections . | . . . . . . Full Trace Events . | . . . . . . Feedback Events . | . . . . . . Feedback Blocked . | . . . . . . Robot Schematics Acquired . | . . . . . . Robots Built . | . . . . . . Authchips . | . . . . . . Time . | . . . . . . Total Robot Build Rating . | . . . . . . Part Schematics Acquired . | . . . . . . Parts Built . | . . . . . . Authchips . | . . . . . . Time . | . . . . . . Total Part Build Rating . | . . . . . . Parts Repaired . | . . . . . . Time . | . . . . . . Parts Recycled . | . . . . . . Recycled Matter . | . . . . . . Retrieved Matter . | . . . . . . Retrieved Components . | . . . . . . Parts Scanalyzed . | . . . . . . Part Schematics Acquired . | . . . . . . Parts Damaged . | . . . . . . Bothacking | -11 -10 -9 -9 -7 -6 ------------ Run | Yrd Mat Mat Min Zio Pro Used RIF Installer . | . . . . . . Robots Hacked . | . . . . . . Non-combat . | . . . . . . Combat . | . . . . . . Robot Hacks Applied . | . . . . . . Relay Couplers Released . | . . . . . . Fabnet Peak Effective % . | . . . . . . Robots Rewired . | . . . . . . Allies Hacked . | . . . . . . Hacks Repelled . | . . . . . . Allies | -11 -10 -9 -9 -7 -6 -------- Run | Yrd Mat Mat Min Zio Pro Total Allies 3 | . . . 3 . . Largest Group 3 | . . . 3 3 3 Highest-Rated Group 40 | . . . 40 40 40 Highest-Rated Ally 16 | . . . 16 16 16 Total Orders . | . . . . . . Ally Attacks 11 | . . . . . 11 Total Damage 103 | . . . . . 103 Kills 1 | . . . . . 1 Allies Corrupted . | . . . . . . Allies Melted . | . . . . . . Intel | -11 -10 -9 -9 -7 -6 ------- Run | Yrd Mat Mat Min Zio Pro Active Infowar (turns) 2867 | . . 198 235 1032 1402 Sensors 2867 | . . 198 235 1032 1402 Robot Analysis Total . | . . . . . . Derelict Logs Recovered 3 | . . . 1 1 1 Drone Launches 1 | . . . . . 1 Drone Recoveries 1 | . . . . . 1 Exploration | -11 -10 -9 -9 -7 -6 ------------- Run | Yrd Mat Mat Min Zio Pro Turns Passed 3196 | 54 213 199 235 1032 1463 Spaces Moved 1880 | 41 111 103 104 673 848 Core 23 | 14 . . . . 9 Treads . | . . . . . . Legs 1857 | 27 111 103 104 673 839 Wheels . | . . . . . . Hover . | . . . . . . Flight . | . . . . . . Fastest Speed 50 | 50 120 120 120 120 120 Average Speed 144 | 96 120 120 120 138 161 Slowest Speed 300 | 120 120 120 120 190 300 Overloaded Moves . | . . . . . . Propulsion Burnouts . | . . . . . . Robots Hopped . | . . . . . . Potential Cave-ins 15 | . . 15 . . . Cave-ins Triggered . | . . . . . . Exploration Rate (%) 31 | 4 26 11 30 45 75 Regions Visited 5 Branch Regions 3 Pre-discovered Areas 1 | . . . 1 . . Known Exits Taken . | . . . . . . Unknown Exits Taken 5 | 1 1 1 1 1 . Scrap Searched 1 | . . . . . 1 Spaces Dug 17 | . . 17 . . . Terrain Destroyed 78 | . . 17 . . 61 Melee . | . . . . . . Projectile 23 | . . 17 . . 6 AOE 55 | . . . . . 55 Terrain Rammed . | . . . . . . Walls Destroyed . | . . . . . . Machines Disabled . | . . . . . . Actions | -11 -10 -9 -9 -7 -6 --------- Run | Yrd Mat Mat Min Zio Pro Total 2217 | 55 151 126 193 777 915 Wait 177 | 1 5 . 67 84 20 Move 1875 | 40 110 102 103 672 848 Hop . | . . . . . . Pick Up 38 | 8 8 3 1 9 9 Fast Attach . | . . . . . . Attach 20 | 6 3 2 . . 9 Detach . | . . . . . . Swap 9 | . 1 2 . 4 2 Drop 12 | . 2 . . 6 4 Fire 83 | . 21 17 22 . 23 Melee . | . . . . . . Ram . | . . . . . . Kick 1 | . 1 . . . . Crush . | . . . . . . Escape Stasis . | . . . . . . Rewire 2 | . . . . 2 . Trap . | . . . . . . Miscellaneous . | . . . . . . Route ------- -11/Scrapyard -10/Materials -9/Materials -9/Mines (discovered 2 exits: [*Mat] / [*Zio]) -7/Zion -6/Proximity Caves History --------- Turn | Location | Event 4 | -11/Scrapyard | Discovered new exit (range 16) 55 | -11/Scrapyard | Entered Materials 226 | -10/Materials | Discovered new exit (range 16) 268 | -10/Materials | Entered another Materials area 268 | -9/Materials | Evolved 2 slots: Propulsion x1, Utility x1 301 | -9/Materials | Build established: Mutant 432 | -9/Materials | Discovered new exit (range 16) 467 | -9/Materials | Entered Mines 599 | -9/Mines | Assisted by bots powering up and referring to "LRC-V3" 676 | -9/Mines | Discovered new exit (range 8) 678 | -9/Mines | A Derelict revealed a hidden shortcut to a safe place 702 | -9/Mines | Entered Zion 702 | -7/Zion | Accompanied by 3 allies 1200 | -7/Zion | Found Prototype Special Weapon 1261 | -7/Zion | Found Prototype Device 1262 | -7/Zion | Identified Phasing AFG 1584 | -7/Zion | Discovered new exit (range 15) 1595 | -7/Zion | Given the Hacking Drone Bay 1600 | -7/Zion | Found Prototype Device 1601 | -7/Zion | Identified Hacking Drone Bay 1734 | -7/Zion | Entered Proximity Caves 1734 | -6/Proximity Caves | Accompanied by 3 allies 1736 | -6/Proximity Caves | Learned location of 1 exit from Factory 2175 | -6/Proximity Caves | Identified RU-N14's Throwing Claymores 2206 | -6/Proximity Caves | Lost 3 allies 2207 | -6/Proximity Caves | Lost 3 parts (1p2w) 3126 | -6/Proximity Caves | Attracted the attention of an 0b10 base 3173 | -6/Proximity Caves | Lost 7 parts (1p3n1u2w) 3176 | -6/Proximity Caves | Core integrity fell below 50% 3196 | -6/Proximity Caves | Core integrity fell below 20% 3197 | -6/Proximity Caves | Destroyed by Y-64 Sentinel with Wave Gun Last Messages --------------- VTOL Module fries itself beyond repair. Y-64 Sentinel suffers critical hit (Burn). Lgt. Ion Engine destroyed. Plasma Rifle destroyed. Slug penetrates Machine. The unstable cave ceiling collapses. Penetrated by Slug. Aluminum Leg destroyed. Machine disabled. Penetrated by Slug. Hacking Drone Bay destroyed. The unstable cave ceiling collapses. Acquired Arc Thrower. Critical hit (Burn: +37). Slug penetrates Storage Shell. Acquired Arc Thrower. Slug penetrates Wall. The unstable cave ceiling collapses. Arc Thrower destroyed. Penetrated by Slug. Map ----- +----------------------------------------------------+ | | | | | | | | | | | | | ???????????????????????????????????????????? | | ???????????????????????????????????????????? | | ???????????????????????????????????????????? | | ???????????????????????????????????????????? | | ???????????????????????????????????????????? | | ???????????????????????????????????????????? | | ???????????????????????????????????????????? | | ???????????????????????????????????????????? | | ???????????????????????????????????????????? | | ???????????????????????????????????????????? | | ???????????????????????????????????????????? | | ???????????????????????????????????????????? | | ?????????###???????????????????????????????? | | ????????## ##?????????????????????????????? | | ???????## ?????????????????????????????? | | ??????## #???############?????????????? | | ??????# ???? # #####?????????? | | ??????# ?????? #?????????? | | ??????# # ####### #??###?????# | | ??????# # % @[# # #??## ####### | | ????# # % [# #?# #?## | | ????# # gY"# ### ### | | ??????# / ### | | ??????# # # #?# | | ??????# + # ### ## ##?# | | ??????###??# #% #?# ####### ### | | ???????????#""T" ;* #?# #?????## | | ???????????#""" " "# #?????## | | ???????????########### ######????## ## # | | ????????????????????? #????##?### ## # | | ????????????????????? #???## ## # | | ????????????????????#####???# ##### | | ????????????????????????????# ###???? | | ???????????????###??????????## ##?????# | | ??????????????## ##?????###?#### #???#### | | ??????????????# #???## ##???## #???# | | ??????????????# #?### ##???####???# | | ???????????????# # ### # #??????????# ## | | ????????????????# ## # #?????????????# | | ????????????????## ### #?###???#??????? | | ?????????????????# # ## #?? ##?????? | | ?????????????????## # #?# ??????? | | ?????????????????### # # #?????? | | ??????????????#### ## # # # ????????? | +----------------------------------------------------+ Best States ------------- Heat Dissipation 28 Energy Generation 18 Energy Capacity 150 Matter Stores 300 Matter Capacity 300 Sight Range 16 Robot Scan Range 14 Terrain Scan Density 10 Weapon Shielding 33 Evasion (%) 55 Item Schematics ----------------- None Robot Schematics ------------------ None Fabricated ------------ Nothing Repaired ---------- Nothing Alien Tech Used ----------------- None Achievements -------------- Please Form A Line Robot Respite Challenges ------------ None Game ------ Seed MultireflexAutogunBiocell Manual? 0 Play Time 00:31:08 Cumulative 5.0 hours Start 2025.05.24 @ 17:16:53 End 2025.05.24 @ 17:45:53 Sessions 1 Manual Loads 0 Difficulty Rogue Special Mode None Game No. 11 Rogue 11 Adventurer 0 Explorer 0 Win Type - Total 0 Types 0/0/0/0/0/0/0/0/0/0 Lore% 8 Gallery% 9 Achievement% 10 Wizard Run 0 Options --------- Layout 2 ASCII 0 Keyboard 0 Movement Numpad Keybinds 0 Fullscreen 1 Font 24/Proggy Map View 50x44 Zoom Use 0% Tactical HUD 0 Map Filters NONE Filters NONE Steam 1 RUN: eb648c0f-37db-4b50-b65d-408c6cf6fa91